Workbook

Sheet 报价对比
A1: 广州千兆精密电子有限公司报价
A2: 序号 | B2: 产品名称 | C2: 含税单价 | D2: 数量 | E2: 含税总价 | F2: 发票税点 | G2: 备注
A3: 1 | B3: 主机物料费 | C3: 28.64 | D3: 7000 | E3: =C3*D3 -> 200480 | F3: 11(实际开13个点增值税发票) | G3: 电池3.9元
A4: 2 | B4: 前脚物料费 | C4: 10.98 | D4: 7000 | E4: =C4*D4 -> 76860 | F4: 11(实际开13个点增值税发票)
A5: 3 | B5: 后脚物料费 | C5: 2.18 | D5: 7000 | E5: 15260 | F5: 11(实际开13个点增值税发票)
A6: 4 | B6: 焊接加工费 | C6: 4.64 | D6: 7000 | E6: 32480 | F6: 11(实际开13个点增值税发票)
A7: 5 | B7: 产品灌胶测试 | C7: 3.89 | D7: 7000 | E7: 27230 | F7: 11(实际开13个点增值税发票) | G7: 工时费38元/小时
A8: 6 | B8: 振动电机 | C8: 1.57 | D8: 7000 | E8: 10990 | F8: 13个点增值税发票
A9: 7 | B9: 4芯连接线 | C9: 0.75 | D9: 7000 | E9: 5250 | F9: 13个点增值税发票
A10: 8 | B10: 6芯连接线 | C10: 1.27 | D10: 7000 | E10: 8890 | F10: 13个点增值税发票
A11: 9 | B11: 外壳 | C11: 0.82 | D11: 7000 | E11: 5740 | F11: 13个点增值税发票
A12: 10 | B12: 磁吸充电头 | C12: 5.15 | D12: 7000 | E12: 36050 | F12: 13个点增值税发票 | G12: 生产时间需要21天
A13: 11 | B13: 蓝牙天线 | C13: 0.71 | D13: 7000 | E13: 4970 | F13: 13个点增值税发票
A14: 12 | B14: 高温磁铁 | C14: 0.44 | D14: 7000 | E14: 3080 | F14: 13个点增值税发票
A15: 13 | B15: 铁片 | C15: 1 | D15: 7000 | E15: 7000 | F15: 不开发票
A16: 14 | B16: 充电线 | C16: 7 | D16: 7000 | E16: 49000 | F16: 13个点增值税发票
A17: 15 | B17: 5V充电头 | C17: 3.355 | D17: 7000 | E17: 23485 | F17: 10(实际开13个点增值税发票)
A18: 单只总价 | C18: =SUM(C3:C17) -> 72.395 | D18: 7000 | E18: 506765 | F18: 13个点增值税发票 | G18: 生产时间需要40天，如果紧急，需要提前做磁吸头
A19: 一双总价 | C19: =C18*2 -> 144.79 | F19: 13个点增值税发票
A21: 广东铵特电子科技股份有限公司报价
A22: 序号 | B22: 产品名称 | C22: 含税单价 | D22: 数量 | E22: 含税总价 | G22: 备注
A23: 1 | B23: 主机物料费 | C23: 34.8 | D23: 7000 | E23: =C23*D23 -> 243600 | F23: 13个点增值税发票 | G23: 电池7元
A24: 2 | B24: 前脚物料费 | C24: 10.2 | D24: 7000 | E24: =C24*D24 -> 71400 | F24: 13个点增值税发票
A25: 3 | B25: 后脚物料费 | C25: 2.1 | D25: 7000 | E25: 14700 | F25: 13个点增值税发票
A26: 4 | B26: 焊接加工费 | C26: 9.06 | D26: 7000 | E26: 63420 | F26: 13个点增值税发票
A27: 5 | B27: 产品灌胶 | C27: 1.73 | D27: 7000 | E27: 12110 | F27: 13个点增值税发票
A28: 6 | B28: 产品测试 | C28: 1.55 | D28: 7000 | E28: 10850 | F28: 13个点增值税发票 | G28: 工时费50元/小时
A29: 7 | B29: 4芯连接线 | C29: 0.75 | D29: 7000 | E29: 5250 | F29: 13个点增值税发票
A30: 8 | B30: 6芯连接线 | C30: 1.27 | D30: 7000 | E30: 8890 | F30: 13个点增值税发票
A31: 9 | B31: 外壳 | C31: 0.82 | D31: 7000 | E31: 5740 | F31: 13个点增值税发票
A32: 10 | B32: 磁吸充电头 | C32: 5.15 | D32: 7000 | E32: 36050 | F32: 13个点增值税发票 | G32: 生产时间需要21天
A33: 11 | B33: 蓝牙天线 | C33: 0.71 | D33: 7000 | E33: 4970 | F33: 13个点增值税发票
A34: 12 | B34: 高温磁铁 | C34: 0.44 | D34: 7000 | E34: 3080 | F34: 13个点增值税发票
A35: 13 | B35: 铁片 | C35: 1 | D35: 7000 | E35: 7000 | F35: 不开发票
A36: 14 | B36: 充电线 | C36: 7 | D36: 7000 | E36: 49000 | F36: 13个点增值税发票
A37: 15 | B37: 5V充电头 | C37: 3.355 | D37: 7000 | E37: 23485 | F37: 10(实际开13个点增值税发票)
A38: 单只总价 | C38: =SUM(C23:C37) -> 79.935 | D38: 7000 | E38: 559545 | F38: 13个点增值税发票 | G38: 生产时间需要40天，如果紧急，需要提前做磁吸头
A39: 一双总价 | C39: =C38*2 -> 159.87 | F39: 13个点增值税发票

Sheet 广东铵特电子科技股份有限公司报价

Sheet 广州千兆精密电子有限公司报价
A1: 广州千兆精密电子有限公司
A2: 千兆精密电子报价单
A3: 甲方： | B3: 广州偶游网络科技有限公司 | E3: 乙 方: | F3: 广州千兆精密电子有限公司
A4: 联系人： | B4: 郑工 | E4: 业务： | F4: 杨树林
A5: 电话： | B5: 15876555139 | E5: 电话： | F5: 18202072498
A6: 日期： | B6: 2022-8-31 | E6: 日期： | F6: 2022-8-31
A7: 序号 | B7: 产品名称 | C7: 加工数量 | D7: 产品单价 | E7: 含税单价 | F7: 产品含税总价 | G7: 工艺要求 | H7: 备注
C8: PCS | D8: RMB | F8: （RMB)
A9: 1 | B9: SmartShoes_V1.2.2 加工费 | C9: 7000 | D9: 4.18 | E9: =ROUND(D9*1.11,2) -> 4.64 | F9: =E9*C9 -> 32480
A10: 2 | B10: 产品灌胶 | C10: 7000 | D10: 3.5 | E10: =ROUND(D10*1.11,2) -> 3.89 | F10: =E10*C10 -> 27230
A11: 3 | B11: 前脚物料费 | C11: 7000 | D11: 9.89 | E11: =ROUND(D11*1.11,2) -> 10.98 | F11: =E11*C11 -> 76860
A12: 4 | B12: 后脚物料费 | C12: 7000 | D12: 1.96 | E12: =ROUND(D12*1.11,2) -> 2.18 | F12: =E12*C12 -> 15260
A13: 5 | B13: 主机物料费 | C13: 7000 | D13: 27.8 | E13: =ROUND(D13*1.11,2) -> 30.86 | F13: =E13*C13 -> 216020 | H13: 不含线材（4芯、6芯）、振动电机
A14: 汇总 | F14: =SUM(F9:F13) -> 367850
A15: 备注 | B15: 因测试无具体时间，报价不包含产品测试和测试所需的测试治具费用
A16: 说明：
A17: (1) | B17: 包公包料预付所有款项百分之60.剩余余款项产品交完，质量没问题全部付清
A18: (2) | B18: 此报价单含税。
A19: (3) | B19: 贴片元器件﹤1206（包含0201、0402、0603、0805封装）封装贴片CHIP料计2个焊点；>1206封装的计4个焊点；排容、排阻记8个焊点；IC 20脚以下1Pin为一焊点（含8脚），20脚以上2pin为一个焊点。玻璃二极管、三极管计3个点,钽电容B、C、D、E型算4个点,异形零件另计。
A20: (4) | B20: 物料损耗:Ｒ、C、D、Q等标准封装为0402的元器件为3%,0603封装和0805封装的元器件为2%,1206和三极管（或同类型封装）为0.3%，8脚（含8脚）IC以下为0.3%，8-14脚IC为0.3‰， (IC/PCB来料不良以一换一,订单批量少于1000PCS, 不计物料损耗。) 超损材料费在加工费中扣除。
A21: (5) | B21: 此报价单根据客户所提供的BOM单报价，贴片时以实际点数为准。
A22: (6) | B22: 自备钢网( ),我方采购客户付款( ), 元/张。
A23: (7) | B23: 客户必须提供可以机贴物料（如卷料、盘料、管料），若提供散料或不良物料以及PCB 板，或由于设计原因，导致我公司发生额外工时，则另加工时费。
A24: (8) | B24: 由客户设计原因导致生产中出现的小封装元件贴大焊盘、大元件贴小焊盘而产生的品质缺陷（元件一头没锡、少锡、翘件等），我方不负责维修，或我方维修，客户承担维修费用。
A25: (9) | B25: 检验标准依据IPC-A-610C，允收水准为AQL：0.65(MA），如有特殊检验规范请事先告知。
A26: (10) | B26: 请客户在收到此报价单后三日内回签，超过三日将视为客户已确认无议。
B27: 本报价如确认，请签字并回传我公司，多谢！
B29: 客户确认: | E29: 供应商确定：
B30: 日 期: | E30: 日 期:
A31: 税号：91440101MA5CLARHX0
A32: 开户银行：广州银行股份有限公司东圃支行
A33: 账号：800264416602013
A34: 地址：广州市天河区新塘大街3号2栋202房
A35: 电话: 020-82347216

Sheet 主板BOM
A1: 主板BOM清单
A2: 序号 | B2: 名称 | C2: 型号 | D2: 封装 | E2: 位号 | F2: 用量 | G2: 总用量 | H2: 采购数量 | I2: 单价 | J2: 总金额 | K2: 备注
A3: 1 | B3: 贴片电容 | C3: 0.1uF | D3: 0402C | E3: C1, C7, C9, C12, C14, C15, C17, C24 | F3: 8
A4: 2 | B4: 贴片电容 | C4: 10uF | D4: 0402C | E4: C2 | F4: 1
A5: 3 | B5: 贴片电容 | C5: 22uF | D5: 0805C | E5: C3, C5, C16, C19 | F5: 4
A6: 4 | B6: 贴片电容 | C6: 1uF | D6: 0402C | E6: C4, C18 | F6: 3
A7: 5 | B7: 贴片电容 | C7: 2.2uF | D7: 0402C | E7: C6, C20 | F7: 2
A8: 6 | B8: 贴片电容 | C8: 12pF | D8: 0402C | E8: C8, C10 | F8: 2
A9: 7 | B9: 贴片电容 | C9: 100pF | D9: 0402C | E9: C11 | F9: 1
A10: 8 | B10: 贴片电容 | C10: 1.0pF | D10: 0402C | E10: C13 | F10: 1
A11: 9 | B11: 贴片二极管 | C11: SS14 | D11: SOD-323 | E11: D1, D3 | F11: 2
A12: 10 | B12: 贴片电感 | C12: 3.3nH | D12: 0402L | E12: L3 | F12: 1
A13: 11 | B13: 贴片三极管 | C13: AO3401 | D13: SOT-23-3 | E13: Q1, Q3 | F13: 2
A14: 12 | B14: 贴片三极管 | C14: AO3400 | D14: SOT-23 | E14: Q2 | F14: 1
A15: 13 | B15: 贴片电阻 | C15: 3K/1% | D15: 0603RM | E15: R1 | F15: 1
A16: 14 | B16: 贴片电阻 | C16: 200K/1% | D16: 0402R | E16: R2 | F16: 1
A17: 15 | B17: 贴片电阻 | C17: 300K/1% | D17: 0402R | E17: R3 | F17: 1
A18: 16 | B18: 贴片电阻 | C18: 1K/1% | D18: 0402R | E18: R4, R11 | F18: 2
A19: 17 | B19: 贴片电阻 | C19: 10K/1% | D19: 0402R | E19: R5, R6, R8 | F19: 3
A20: 18 | B20: 芯片 | C20: TP4056X | D20: SOP-8P | E20: U1 | F20: 1
A21: 19 | B21: 芯片 | C21: QMA7981 | D21: LGA-12_2*2-e0.25 | E21: U2 | F21: 1
A22: 20 | B22: 芯片 | C22: NRF52832-QFAA-R | D22: QFN48P-6X6 | E22: U3 | F22: 1 | K22: 先烧录再SMT加工
A23: 21 | B23: 芯片 | C23: XC6206P302MR | D23: SOT-23 | E23: U4 | F23: 1 | K23: TOREX(特瑞仕)
A24: 22 | B24: 晶振 | C24: 32MHz/12pF/10PPM | D24: XTAL-SMD-2016 | E24: Y1 | F24: 1 | K24: YXC(扬兴科技)
A25: 23 | B25: PCB板 | C25: FR4 34*25 厚1.0mm 沉金 绿油 | F25: 1 | K25: 由贴片厂家拼板
A26: 24 | B26: 振动电机 | C26: 扁平振动电机0827，出线2cm，焊接 | F26: 1
A27: 25 | B27: 高温电池 | C27: 高温(耐高温80度)聚合物锂电池602530，真实容量>400mah，出线长1.5cm，电流>1A，焊接 | F27: 1 | K27: 需要确定线径和线长
A28: 26 | B28: 4芯连接线 | C28: 28AWG（19/0.08STCU）*6C + 过粉 ID: 0.62±0.03mm 铁氟龙绝缘，芯色：红，白，绿，黑，蓝， 焊接不缩皮 OD: 2.5±0.1mm PVC 80P 黑色半雾面外被 长（L）＝ 60mm ，两端脱皮7mm，剥皮镀锡2.0mm，两头焊接 | F28: 1 | K28: 我司提供
A29: 27 | B29: 6芯连接线 | C29: 28AWG（19/0.08STCU）*6C + 过粉 ID: 0.62±0.03mm 铁氟龙绝缘，芯色：红，白，绿，黑，蓝，黄 , 焊接不缩皮 OD: 3.0±0.1mm PVC 80P 黑色半雾面外被 长（L）＝ 150mm ，两端脱皮7mm，剥皮镀锡2.0mm，两头焊接 | F29: 1 | K29: 我司提供
A30: 28 | B30: 外壳 | C30: 定制，40*27*10.8mm | F30: 1 | K30: 我司提供
A31: 29 | B31: 磁吸充电头 | C31: 定制，4芯连接线，单根外径2.5mm，长 12cm，护套剥皮10mm，线芯剥皮2mm上锡，焊接 | F31: 1 | K31: 我司提供
A32: 30 | B32: 蓝牙天线 | C32: 定制，FR4 43*4 厚0.6mm，3M背胶，2.4G，3dB，馈线线长12.3cm，焊接 | F32: 1 | K32: 我司提供

Sheet 前脚 BOM
A1: 前脚 BOM
A2: 序号 | B2: 名称 | C2: 型号 | D2: 封装 | E2: 位号 | F2: 用量 | G2: 总用量 | H2: 采购数量 | I2: 单价 | J2: 总金额 | K2: 备注
A3: 1 | B3: 贴片电容 | C3: 1uF | D3: 0402C | E3: C2, C3 | F3: 2
A4: 2 | B4: 贴片电容 | C4: 2.2uF | D4: 0402C | E4: C4 | F4: 1
A5: 3 | B5: 贴片电容 | C5: 10uF | D5: 0603C | E5: C5 | F5: 1
A6: 4 | B6: 贴片电容 | C6: 0.1uF | D6: 0402C | E6: C6, C7 | F6: 2
A7: 5 | B7: 贴片电阻 | C7: 100K | D7: 0402R | E7: R1, R2 | F7: 2
A8: 6 | B8: 芯片 | C8: LSM6DS3TR-C | D8: LGA-14_2.5*3-e0.5 | E8: U1 | F8: 1
A9: 7 | B9: 芯片 | C9: QMC6310U | D9: LGA-8_1.2*1.2-E0.4 | E9: U2 | F9: 1 | K9: 注意：这颗芯片SMT加工特别容易虚焊，建议开阶梯钢网
A10: 8 | B10: PCB板 | C10: FR4 17.5*17 厚1.0mm 沉金 绿油 | F10: 1 | K10: 注意：拼板要考虑到分板后不能有突起超过外形的，否则放不进壳子里
A11: 9 | B11: 磁铁 | C11: 直径0.6cm，厚度1mm，高温磁铁 | F11: 2 | K11: 我司提供
A12: 10 | B12: 铁片 | C12: 直径2cm，厚度 0.3mm，带背胶 | F12: 2 | K12: 我司提供
A13: 11 | B13: 外壳 | C13: 直径2cm，厚度3mm | F13: 1 | K13: 我司提供

Sheet 后脚 BOM
A1: 后脚 BOM
A2: 序号 | B2: 名称 | C2: 型号 | D2: 封装 | E2: 位号 | F2: 用量 | G2: 总用量 | H2: 采购数量 | I2: 单价 | J2: 总金额 | K2: 备注
A3: 1 | B3: 贴片电容 | C3: 1uF | D3: 0402C | E3: C3 | F3: 21
A4: 2 | B4: 贴片电容 | C4: 2.2uF | D4: 0402C | E4: C4 | F4: 1
A5: 3 | B5: 贴片电容 | C5: 10uF | D5: 0603C | E5: C5 | F5: 1
A6: 4 | B6: 芯片 | C6: QMC6310U | D6: LGA-8_1.2*1.2-E0.4 | E6: U2 | F6: 1 | K6: 注意：这颗芯片SMT加工特别容易虚焊，建议开阶梯钢网
A7: 5 | B7: PCB板 | C7: FR4 14*13 厚1.0mm 沉金 绿油 | F7: 1 | K7: 注意：拼板要考虑到分板后不能有突起超过外形的，否则放不进壳子里
A8: 6 | B8: 磁铁 | C8: 直径0.6cm，厚度1mm，高温磁铁 | F8: 2 | K8: 我司提供
A9: 7 | B9: 铁片 | C9: 直径2cm，厚度 0.3mm，带背胶 | F9: 2 | K9: 我司提供
A10: 8 | B10: 外壳 | C10: 直径2cm，厚度3mm，带4芯线(OD2.5mm) | F10: 1 | K10: 我司提供
